fUST/lending_fUST_20240429
["ID","MTS","AMOUNT","RATE_DAILY","PERIOD"]
[324826435,1714354233247,-201.07386942,0.00018271,2]
[324826437,1714354233256,-500.0,0.00018271,2]
[324826438,1714354233265,-500.0,0.00018271,2]
[324826441,1714354233275,-500.0,0.00018271,2]
[324826442,1714354233284,-500.0,0.00018272,2]
[324826445,1714354233293,-217.54264759,0.00018272,2]
[324826661,1714354238240,-500.0,0.00017999,2]
[324826662,1714354238249,-711.77,0.00018271,2]
[324826663,1714354238260,-282.45735241,0.00018272,2]
[324826664,1714354238269,-500.0,0.00018272,2]
[324826665,1714354238278,-618.38509782,0.00018272,2]
[324826666,1714354238290,-858.61490218,0.00018272,2]
[324826667,1714354238299,-899.52,0.00018272,2]
[324826668,1714354238309,-1882.81844783,0.00018272,2]
[324826669,1714354238320,-250.19146807,0.00018272,2]
[324826805,1714354243509,-3314.27,0.00017999,2]
[324826807,1714354243520,-813.4,0.00017999,2]
[324826809,1714354243530,-500.0,0.00018271,2]
[324826811,1714354243539,-18969.8600841,0.00018272,2]
[324826813,1714354243548,-1537.75,0.00018272,2]
[324826815,1714354243557,-500.0,0.00018272,2]
[324826817,1714354243567,-14954.94,0.00018272,2]
[324826820,1714354243576,-500.0,0.00018273,3]
[324826822,1714354243585,-7663.9,0.00018273,3]
[324826825,1714354243594,-500.0,0.00018273,3]
[324826846,1714354243722,-1369.14,0.00018273,3]
[324826848,1714354243740,-638.11,0.00018273,3]
[324826850,1714354243749,-877.27,0.00018273,3]
[324826852,1714354243758,-1990.47,0.00018273,3]
[324826854,1714354243767,-500.0,0.00018273,3]
[324826856,1714354243776,-500.0,0.00018273,3]
[324826858,1714354243785,-500.0,0.00018273,3]
[324826860,1714354243794,-454.03644147,0.00018273,3]
[324826862,1714354243804,-500.0,0.00018273,3]
[324826864,1714354243817,-500.0,0.00018273,3]
[324826866,1714354243827,-3936.53,0.00018273,3]
[324826868,1714354243836,-3467.76,0.00018273,3]
[324826870,1714354243847,-796.14,0.00018273,3]
[324826872,1714354243856,-1012.41,0.00018273,3]
[324826874,1714354243865,-6692.36,0.00018273,3]
[324826876,1714354243874,-500.0,0.00018273,3]
[324826878,1714354243884,-500.0,0.00018273,3]
[324826880,1714354243893,-3314.27,0.00018273,3]
[324826882,1714354243903,-974.0023866,0.0001831,2]
[324826884,1714354243911,-18374.23965721,0.0001844,2]
[324826886,1714354243920,-208141.48167177,0.00018446,2]
[324826888,1714354243932,-364.6707124,0.00018446,2]
[324826902,1714354244050,-1258.08401922,0.00018446,2]
[324827168,1714354246459,-3387.72625463,0.0001827,2]
[324827170,1714354246469,-500.0,0.00018271,2]
[324827172,1714354246478,-500.0,0.00018271,2]
[324827174,1714354246488,-813.4,0.00018273,3]
[324827177,1714354246499,-200355.8257917,0.00018446,2]
[324827178,1714354246534,-166.39460392,0.00018447,2]
[324827180,1714354246546,-974.0023866,0.00018447,2]
[324827182,1714354246555,-500.0,0.00018545,3]
[324827184,1714354246565,-500.0,0.00018545,3]
[324827187,1714354246575,-500.0,0.00018545,2]
[324827188,1714354246585,-500.0,0.00018545,3]
[324827190,1714354246595,-711.77,0.00018545,3]
[324827192,1714354246605,-500.0,0.00018545,2]
[324827194,1714354246614,-500.0,0.00018545,3]
[324827196,1714354246623,-500.0,0.00018545,3]
[324827198,1714354246632,-316.73404023,0.00018546,3]
[324827200,1714354246642,-500.0,0.00018546,3]
[324827202,1714354246651,-500.0,0.00018546,3]
[324827204,1714354246660,-500.0,0.00018546,3]
[324827206,1714354246669,-1477.0,0.00018546,3]
[324827208,1714354246678,-899.52,0.00018546,3]
[324827210,1714354246688,-21102.87,0.00018546,3]
[324827212,1714354246697,-1537.75,0.00018546,3]
[324827214,1714354246707,-500.0,0.00018546,3]
[324827217,1714354246716,-14954.94,0.00018546,3]
[324827219,1714354246726,-2074.26,0.00018547,4]
[324827220,1714354246735,-500.0,0.00018547,4]
[324827222,1714354246746,-1158.1,0.00018547,4]
[324827224,1714354246755,-500.0,0.00018547,4]
[324827227,1714354246765,-7663.9,0.00018547,4]
[324827228,1714354246776,-500.0,0.00018547,4]
[324827230,1714354246785,-1369.14,0.00018547,4]
[324827233,1714354246796,-638.11,0.00018547,4]
[324827234,1714354246806,-877.27,0.00018547,4]
[324827236,1714354246817,-1990.47,0.00018547,4]
[324827238,1714354246826,-243.37604747,0.00018547,4]
[324827240,1714354246835,-500.0,0.00018547,4]
[324827242,1714354246844,-500.0,0.00018547,4]
[324827244,1714354246854,-500.0,0.00018547,4]
[324827246,1714354246864,-500.0,0.00018547,4]
[324827248,1714354246873,-3936.53,0.00018547,4]
[324827250,1714354246882,-3467.76,0.00018547,4]
[324827252,1714354246892,-796.14,0.00018547,4]
[324827254,1714354246902,-1012.41,0.00018547,4]
[324827256,1714354246911,-6692.36,0.00018547,4]
[324827259,1714354246920,-500.0,0.00018547,4]
[324827261,1714354246929,-500.0,0.00018547,4]
[324827263,1714354246938,-3314.27,0.00018547,4]
[324827264,1714354246947,-813.4,0.00018547,4]
[324827266,1714354246956,-153.0,0.00018578,2]
[324827268,1714354246965,-153.0,0.00018578,2]
[324827284,1714354247095,-153.0,0.00018678,2]
[324827286,1714354247107,-153.0,0.0001874,2]
[324827288,1714354247116,-309.49379544,0.00018819,4]
[324827290,1714354247125,-500.0,0.00018819,4]
[324827292,1714354247134,-500.0,0.00018819,3]
[324827293,1714354247144,-500.0,0.00018819,4]
[324827295,1714354247155,-711.77,0.00018819,4]
[324827297,1714354247164,-500.0,0.00018819,3]
[324827300,1714354247174,-500.0,0.00018819,4]
[324827301,1714354247183,-500.0,0.00018819,4]
[324827303,1714354247193,-500.0,0.0001882,4]
[324827305,1714354247203,-555.9788001,0.0001882,4]
[324827308,1714354247213,-500.0,0.0001882,4]
[324827309,1714354247222,-1477.0,0.0001882,4]
[324827311,1714354247231,-899.52,0.0001882,4]
[324827313,1714354247241,-1107.12781777,0.0001882,4]
[324827431,1714354624955,500.0,0.00018167,7]
[324827432,1714354628268,788.21,0.00018167,7]
[324827433,1714354660368,2031.28,0.00018167,7]
[324827434,1714354672522,12357.11690992,0.00018167,7]
[324827435,1714355234117,-166.666666,0.00014911,2]
[324827436,1714355234138,-1196.45964624,0.00014986,2]
[324827437,1714355234158,-184.09239863,0.00015017,2]
[324827438,1714355234178,-110.41024427,0.00015085,2]
[324827439,1714355237133,-2479.60753357,0.00015085,2]
[324827440,1714355237161,-300.0,0.00015085,2]
[324827441,1714355237188,-203.0,0.00015085,2]
[324827442,1714355237213,-49842.23943858,0.00015086,2]
[324827443,1714355252125,-610.42015982,0.00015017,2]
[324827444,1714355252150,-3500.14326265,0.00015086,2]
[324827445,1714355254118,-5868.20915262,0.00015086,2]
[324827446,1714355254143,-24900.0,0.00015087,2]
[324827447,1714355254163,-308.64235731,0.00015117,2]
[324827448,1714355254183,-479.522356,0.00015347,2]
[324827449,1714355254204,-1196.45964621,0.00015414,2]
[324827450,1714355254225,-150.0,0.0001559,3]
[324827451,1714355254245,-1196.45964621,0.00015841,2]
[324827452,1714355254266,-428.26715399,0.00015953,2]
[324827453,1714355254286,-1201.64360762,0.00016238,2]
[324827454,1714355254306,-1196.45964621,0.00016269,2]
[324827455,1714355254325,-610.42015976,0.0001629,2]
[324827456,1714355254347,-420.0,0.00016593,2]
[324827457,1714355254367,-1196.45964621,0.00016696,2]
[324827458,1714355254388,-500.0,0.00016794,2]
[324827459,1714355254409,-500.0,0.00016794,2]
[324827460,1714355254430,-500.0,0.00016794,2]
[324827461,1714355254450,-755.37,0.00016794,2]
[324827462,1714355254470,-500.0,0.00016794,2]
[324827463,1714355254490,-500.0,0.00016794,2]
[324827464,1714355254509,-500.0,0.00016794,2]
[324827465,1714355254529,-500.0,0.00016794,2]
[324827466,1714355254549,-500.0,0.00016794,2]
[324827467,1714355254570,-1946.64,0.00016794,2]
[324827468,1714355254591,-500.0,0.00016794,2]
[324827469,1714355254610,-500.0,0.00016794,2]
[324827470,1714355254632,-18789.95,0.00016794,2]
[324827471,1714355254652,-500.0,0.00016794,2]
[324827472,1714355254674,-500.0,0.00016794,2]
[324827473,1714355254693,-500.0,0.00016794,2]
[324827474,1714355254713,-500.0,0.00016794,2]
[324827475,1714355254733,-500.0,0.00016794,2]
[324827476,1714355254752,-500.0,0.00016794,2]
[324827477,1714355254773,-500.0,0.00016794,2]
[324827478,1714355254793,-1549.31,0.00016794,2]
[324827479,1714355254816,-1053.32,0.00016794,2]
[324827480,1714355254836,-500.0,0.00016794,2]
[324827481,1714355254855,-500.0,0.00016794,2]
[324827482,1714355254878,-322.20816975,0.00016794,2]
[324827483,1714355357193,-273.23797331,0.00016792,2]
[324827484,1714355357223,-500.0,0.00016792,2]
[324827485,1714355357252,-1906.18194652,0.00016793,2]
[324827486,1714355357279,-166.98222317,0.00016793,2]
[324827487,1714355357308,-300.0,0.00016793,2]
[324827488,1714355357336,-177.79183025,0.00016794,2]
[324827489,1714355357365,-587.73608665,0.00016794,2]
[324827490,1714355357393,-15067.36,0.00016794,2]
[324827491,1714355357421,-500.0,0.00016794,2]
[324827492,1714355357450,-500.0,0.00016794,2]
[324827493,1714355357478,-504.21956918,0.00016794,2]
[324827494,1714355357505,-211.60967092,0.00016794,2]
[324827495,1714355358134,-288.39032908,0.00016794,2]
[324827496,1714355358161,-1000.0,0.00016794,2]
[324827497,1714355358189,-500.0,0.00016794,2]
[324827498,1714355358211,-500.0,0.00016794,2]
[324827499,1714355358231,-500.0,0.00016794,2]
[324827500,1714355358252,-500.0,0.00016794,2]
[324827501,1714355358446,-1988.57,0.00016794,2]
[324827502,1714355358477,-500.0,0.00016794,2]
[324827503,1714355358496,-500.0,0.00016794,2]
[324827504,1714355358516,-500.0,0.00016794,2]
[324827505,1714355358535,-375.69011241,0.00016794,2]
[324827506,1714355358554,-1215.67,0.00016794,2]
[324827507,1714355358572,-794.71,0.00016794,2]
[324827508,1714355358591,-500.0,0.00016794,2]
[324827509,1714355358610,-500.0,0.00016794,2]
[324827510,1714355358631,-500.0,0.00016794,2]
[324827511,1714355358651,-500.0,0.00016794,2]
[324827512,1714355358672,-6708.21,0.00016794,2]
[324827513,1714355358696,-500.0,0.00016794,2]
[324827514,1714355358716,-500.0,0.00016794,2]
[324827515,1714355358735,-500.0,0.00016794,2]
[324827516,1714355358755,-367.03627452,0.00016794,2]
[324827517,1714355358775,-195.70159265,0.00016794,2]
[324827518,1714355358795,-190.73721849,0.00016794,2]
[324827519,1714355358814,-500.0,0.00016794,2]
[324827520,1714355358833,-357.31704565,0.00016794,2]
[324827521,1714355358853,-500.0,0.00016794,2]
[324827522,1714355358872,-1115.81,0.00016794,2]
[324827523,1714355358893,-1203.88,0.00016794,2]
[324827524,1714355358913,-500.0,0.00016794,2]
[324827525,1714355358934,-500.0,0.00016794,2]
[324827526,1714355358954,-500.0,0.00016794,2]
[324827527,1714355358975,-500.0,0.00016794,2]
[324827528,1714355358995,-500.0,0.00016794,2]
[324827529,1714355359014,-559.74,0.00016794,2]
[324827530,1714355359034,-500.0,0.00016794,2]
[324827531,1714355359054,-500.0,0.00016794,2]
[324827532,1714355359073,-208.32637695,0.00016794,2]
[324827533,1714355359093,-582.19,0.00016794,2]
[324827534,1714355359117,-500.0,0.00016794,2]
[324827535,1714355359136,-432.63906924,0.00016794,2]
[324827536,1714355359157,-500.0,0.00016794,2]
[324827537,1714355359178,-500.0,0.00016794,2]
[324827538,1714355359200,-500.0,0.00016794,2]
[324827539,1714355359218,-500.0,0.00016794,2]
[324827540,1714355359237,-767.05,0.00016794,2]
[324827541,1714355359256,-767.73,0.00016794,2]
[324827542,1714355359278,-1742.99,0.00016794,2]
[324827543,1714355359301,-500.0,0.00016794,2]
[324827544,1714355359320,-634.2946038,0.00016794,2]
[324827545,1714355359338,-500.0,0.00016794,2]
[324827546,1714355359357,-500.0,0.00016794,2]
[324827547,1714355359376,-500.0,0.00016794,2]
[324827548,1714355359396,-500.0,0.00016794,2]
[324827549,1714355359416,-1543.59,0.00016794,2]
[324827550,1714355359443,-722.3,0.00016794,2]
[324827551,1714355359462,-500.0,0.00016794,2]
[324827552,1714355359481,-315.52320901,0.00016794,2]
[324827553,1714355359501,-500.0,0.00016794,2]
[324827554,1714355359521,-500.0,0.00016794,2]
[324827555,1714355359541,-500.0,0.00016794,2]
[324827556,1714355359561,-891.13,0.00016794,2]
[324827557,1714355359579,-500.0,0.00016794,2]
[324827558,1714355359600,-392.3133569,0.00016796,3]
[324827559,1714355359620,-622.8,0.00016796,2]
[324827560,1714355359638,-502.8,0.00016796,2]
[324827561,1714355359657,-1303.89,0.00016796,2]
[324827562,1714355359678,-500.0,0.00016796,2]
[324827563,1714355359698,-1121.76,0.00016796,2]
[324827564,1714355359717,-500.0,0.00016796,2]
[324827565,1714355359737,-942.22,0.00016796,2]
[324827566,1714355359758,-500.0,0.00016796,2]
[324827567,1714355359777,-160.03,0.00016796,2]
[324827568,1714355359797,-486.15239439,0.00016796,2]
[324827569,1714355359816,-500.0,0.00016796,2]
[324827570,1714355359835,-513.67687985,0.00016796,2]
[324827571,1714355359855,-257.24014833,0.00016796,2]
[324827572,1714355359875,-500.0,0.00016796,2]
[324827573,1714355359895,-500.0,0.00016796,2]
[324827574,1714355359915,-867.25,0.00016796,2]
[324827575,1714355359941,-535.6,0.00016796,2]
[324827576,1714355359960,-621.72072815,0.00016796,2]
[324827577,1714355359979,-757.23,0.00016796,2]
[324827578,1714355360000,-500.0,0.00016796,2]
[324827579,1714355360020,-500.0,0.00016796,2]
[324827580,1714355360039,-500.0,0.00016796,2]
[324827581,1714355360059,-1777.91,0.00016796,2]
[324827582,1714355360079,-2042.69,0.00016796,2]
[324827583,1714355360100,-500.0,0.00016796,2]
[324827584,1714355360124,-500.0,0.00016796,2]
[324827585,1714355360144,-864.57,0.00016796,2]
[324827586,1714355360164,-500.0,0.00016796,2]
[324827587,1714355360184,-500.0,0.00016796,2]
[324827588,1714355360205,-500.0,0.00016796,2]
[324827589,1714355360224,-500.0,0.00016796,2]
[324827590,1714355360243,-729.7,0.00016796,2]
[324827591,1714355360263,-1104.93,0.00016796,2]
[324827592,1714355360379,-1813.15,0.00016796,2]
[324827593,1714355360399,-500.0,0.00016796,2]
[324827594,1714355360420,-500.0,0.00016796,2]
[324827595,1714355360444,-500.0,0.00016796,2]
[324827596,1714355360464,-2020.36,0.00016796,2]
[324827597,1714355360483,-578.62,0.00016796,2]
[324827598,1714355360503,-500.0,0.00016796,2]
[324827599,1714355360523,-2608.39,0.00016796,2]
[324827600,1714355360543,-508.94,0.00016796,2]
[324827601,1714355360563,-500.0,0.00016796,2]
[324827602,1714355360582,-500.83218388,0.00016796,2]
[324827603,1714355360602,-2385.88,0.00016796,2]
[324827604,1714355360622,-506.03034214,0.00016796,2]
[324827605,1714355360642,-4163.59,0.00016796,2]
[324827606,1714355360662,-500.0,0.00016796,2]
[324827607,1714355360684,-500.0,0.00016796,2]
[324827608,1714355360703,-500.0,0.00016796,2]
[324827609,1714355360723,-500.0,0.00016796,2]
[324827610,1714355360743,-500.0,0.00016796,2]
[324827611,1714355360762,-3447.21,0.00016796,2]
[324827612,1714355360781,-634.53,0.00016796,2]
[324827613,1714355360801,-3035.57,0.00016796,2]
[324827614,1714355360821,-500.0,0.00016796,2]
[324827615,1714355360840,-500.0,0.00016796,2]
[324827616,1714355360860,-6444.12,0.00016796,2]
[324827617,1714355360879,-681.27,0.00016796,2]
[324827618,1714355360900,-923.96,0.00016796,2]
[324827619,1714355360920,-991.78,0.00016796,2]
[324827620,1714355360941,-500.0,0.00016796,2]
[324827621,1714355360962,-500.0,0.00016796,2]
[324827622,1714355360981,-696.62,0.00016796,2]
[324827623,1714355361001,-885.54,0.00016796,2]
[324827624,1714355361019,-500.0,0.00016796,2]
[324827625,1714355361039,-500.0,0.00016796,2]
[324827626,1714355361058,-885.86,0.00016796,2]
[324827627,1714355361078,-818.52,0.00016796,2]
[324827628,1714355361098,-5855.82,0.00016796,2]
[324827629,1714355361120,-500.0,0.00016796,2]
[324827630,1714355361140,-500.0,0.00016796,2]
[324827631,1714355361160,-500.0,0.00016796,2]
[324827632,1714355361180,-442.04489456,0.00016796,2]
[324827633,1714355365107,-633.63175059,0.00016794,2]
[324827634,1714355365131,-500.0,0.00016794,2]
[324827635,1714355365156,-500.0,0.00016794,2]
[324827636,1714355365176,-57.95510544,0.00016796,2]
[324827637,1714355365196,-500.0,0.00016796,2]
[324827638,1714355365216,-500.0,0.00016796,2]
[324827639,1714355365238,-2899.99,0.00016796,2]
[324827640,1714355365257,-504.14,0.00016796,2]
[324827641,1714355365277,-500.0,0.00016796,2]
[324827642,1714355365296,-505.0342783,0.00016796,2]
[324827643,1714355365446,-500.0,0.00016796,2]
[324827644,1714355365466,-500.0,0.00016796,2]
[324827645,1714355365484,-500.0,0.00016796,2]
[324827646,1714355365503,-500.0,0.00016796,2]
[324827647,1714355365523,-500.0,0.00016796,2]
[324827648,1714355365541,-500.0,0.00016796,2]
[324827649,1714355365561,-500.0,0.00016796,2]
[324827650,1714355365581,-1291.58,0.00016796,2]
[324827651,1714355365601,-500.0,0.00016796,2]
[324827652,1714355365620,-500.0,0.00016796,2]
[324827653,1714355365640,-500.0,0.00016796,2]
[324827654,1714355365661,-526.81243806,0.00016796,2]
[324827655,1714355365680,-500.0,0.00016796,2]
[324827656,1714355365701,-500.0,0.00016796,2]
[324827657,1714355365722,-449.63143447,0.00016796,2]
[324827658,1714355365742,-500.0,0.00016796,2]
[324827659,1714355365761,-500.0,0.00016796,2]
[324827660,1714355365781,-4000.11,0.00016796,2]
[324827661,1714355365800,-410.76921222,0.00016796,2]
[324827662,1714355365819,-605.13,0.00016796,2]
[324827663,1714355365841,-2576.19,0.00016796,2]
[324827664,1714355365862,-1061.43,0.00016796,2]
[324827665,1714355365880,-500.0,0.00016796,2]
[324827666,1714355365899,-1642.89,0.00016796,2]
[324827667,1714355365917,-500.0,0.00016796,2]
[324827668,1714355365936,-1004.76,0.00016796,2]
[324827669,1714355365955,-500.0,0.00016796,2]
[324827670,1714355365974,-500.0,0.00016796,2]
[324827671,1714355365993,-500.0,0.00016796,2]
[324827672,1714355366015,-500.0,0.00016796,2]
[324827673,1714355366035,-502.96620153,0.00016796,2]
[324827674,1714355366055,-3660.42,0.00016796,2]
[324827675,1714355366076,-890.2,0.00016796,2]
[324827676,1714355366096,-500.0,0.00016796,2]
[324827677,1714355366119,-4923.41,0.00016796,2]
[324827678,1714355366142,-845.07,0.00016796,2]
[324827679,1714355366163,-500.0,0.00016796,2]
[324827680,1714355366185,-1156.88,0.00016796,2]
[324827681,1714355366204,-500.0,0.00016796,2]
[324827682,1714355366224,-561.50710955,0.00016796,2]
[324827683,1714355366243,-500.0,0.00016796,2]
[324827684,1714355366262,-500.0,0.00016796,2]
[324827685,1714355366282,-500.0,0.00016796,2]
[324827686,1714355366301,-821.94,0.00016796,2]
[324827687,1714355366320,-509.08478671,0.00016796,2]
[324827688,1714355366338,-500.0,0.00016796,2]
[324827689,1714355366357,-500.0,0.00016796,2]
[324827690,1714355366376,-500.0,0.00016796,2]
[324827691,1714355366396,-500.0,0.00016796,2]
[324827692,1714355366415,-16532.44,0.00016796,2]
[324827693,1714355366435,-500.0,0.00016796,2]
[324827694,1714355366454,-500.0,0.00016796,2]
[324827695,1714355366474,-912.41,0.00016796,2]
[324827696,1714355366494,-500.0,0.00016796,2]
[324827697,1714355366513,-500.0,0.00016797,3]
[324827698,1714355366534,-500.0,0.00016797,3]
[324827699,1714355366554,-511.43240643,0.00016798,2]
[324827700,1714355366574,-500.0,0.00016798,2]
[324827701,1714355366596,-9694.2,0.00016798,2]
[324827702,1714355366616,-500.0,0.00016798,2]
[324827703,1714355366637,-500.0,0.00016798,2]
[324827704,1714355366656,-500.0,0.00016799,4]
[324827705,1714355366676,-500.0,0.00016799,4]
[324827706,1714355366698,-500.0,0.00017066,3]
[324827707,1714355366719,-500.0,0.00017068,3]
[324827708,1714355366740,-755.37,0.00017068,3]
[324827709,1714355366761,-553.8921359,0.00017068,3]
[324827710,1714355366780,-642.68992695,0.00017068,3]
[324827711,1714355366800,-500.0,0.00017068,3]
[324827712,1714355366820,-500.0,0.00017068,3]
[324827713,1714355366839,-500.0,0.00017068,3]
[324827714,1714355366860,-1946.64,0.00017068,3]
[324827715,1714355366879,-500.0,0.00017068,3]
[324827716,1714355366898,-500.0,0.00017068,3]
[324827717,1714355366919,-14972.07335777,0.00017068,3]
[324827718,1714355431399,312.83743319,9.999e-05,2]
[324827719,1714355431425,252.14208342,9.999e-05,2]
[324827752,1714355432324,-300.0,0.00016791,2]
[324827753,1714355432334,-17383.2,0.00016792,2]
[324827755,1714355432343,-1484.76,0.00016792,2]
[324827757,1714355432353,-500.0,0.00016792,2]
[324827759,1714355432362,-1905.71,0.00016792,2]
[324827761,1714355432371,-692.42,0.00016793,2]
[324827763,1714355432380,-604.58,0.00016794,2]
[324827765,1714355432389,-500.0,0.00016794,2]
[324827767,1714355432398,-2909.09,0.00016794,2]
[324827769,1714355432407,-500.0,0.00016794,2]
[324827771,1714355432417,-3303.58,0.00016794,2]
[324827773,1714355432426,-504.97902864,0.00016794,2]
[324827775,1714355432435,-512.68949824,0.00016794,2]
[324827777,1714355432444,-885.46,0.00016794,2]
[324827779,1714355432454,-151.0,0.00016794,2]
[324827781,1714355432464,-6175.61,0.00016794,2]
[324827783,1714355432474,-500.0,0.00016794,2]
[324827784,1714355432483,-2480.21,0.00016794,2]
[324827785,1714355432493,-500.0,0.00016794,2]
[324827786,1714355432502,-667.59,0.00016794,2]
[324827787,1714355432511,-500.0,0.00016794,2]
[324827788,1714355432522,-707.74,0.00016794,2]
[324827789,1714355432532,-848.95,0.00016794,2]
[324827790,1714355432541,-500.0,0.00016794,2]
[324827791,1714355432550,-500.0,0.00016794,2]
[324827792,1714355432560,-500.0,0.00016794,2]
[324827793,1714355432570,-645.96723044,0.00016794,2]
[324827794,1714355432579,-674.01,0.00016794,2]
[324827795,1714355432589,-500.0,0.00016794,2]
[324827796,1714355432598,-5611.83,0.00016794,2]
[324827797,1714355432607,-500.0,0.00016794,2]
[324827798,1714355432616,-690.72,0.00016794,2]
[324827799,1714355432625,-1807.6,0.00016794,2]
[324827800,1714355432635,-500.0,0.00016794,2]
[324827801,1714355432644,-500.0,0.00016794,2]
[324827802,1714355432654,-2779.15,0.00016794,2]
[324827803,1714355432663,-577.62,0.00016796,2]
[324827804,1714355432672,-1176.16,0.00016796,2]
[324827805,1714355432681,-742.98,0.00016796,2]
[324827806,1714355432691,-897.73,0.00016796,2]
[324827807,1714355432701,-500.0,0.00016796,2]
[324827808,1714355432711,-500.0,0.00016796,2]
[324827809,1714355432720,-515.53975195,0.00016796,2]
[324827810,1714355432730,-500.0,0.00016796,2]
[324827811,1714355432739,-2109.47,0.00016796,2]
[324827812,1714355432750,-500.0,0.00016796,2]
[324827813,1714355432759,-742.98,0.00016797,3]
[324827814,1714355432768,-742.98,0.00016799,4]
[324827815,1714355432778,-3337.03603262,0.00017066,3]
[324827816,1714355432790,-14046.16396738,0.00017066,3]
[324827817,1714355432800,-1484.76,0.00017066,3]
[324827818,1714355432810,-500.0,0.00017066,3]
[324827819,1714355432819,-1905.71,0.00017066,3]
[324827820,1714355432828,-692.42,0.00017067,3]
[324827821,1714355432839,-500.0,0.00017068,3]
[324827822,1714355432848,-543.21305827,0.00017068,3]
[324827823,1714355432857,-500.0,0.00017068,3]
[324827824,1714355432867,-500.0,0.00017068,3]
[324827825,1714355432876,-500.0,0.00017068,3]
[324827826,1714355432885,-500.0,0.00017068,3]
[324827827,1714355432894,-500.0,0.00017068,3]
[324827828,1714355432903,-1053.32,0.00017068,3]
[324827829,1714355432912,-500.0,0.00017068,3]
[324827830,1714355432922,-529.97634665,0.00017068,3]
[324827831,1714355432931,-15067.36,0.00017068,3]
[324827832,1714355432940,-503.96408506,0.00017068,3]
[324827833,1714355432950,-500.0,0.00017068,3]
[324827834,1714355432960,-500.89912745,0.00017068,3]
[324827835,1714355432969,-538.31256169,0.00017068,3]
[324827836,1714355432978,-500.0,0.00017068,3]
[324827837,1714355432987,-493.88670057,0.00017068,3]
[324827838,1714355432997,-500.0,0.00017068,3]
[324827839,1714355433006,-500.0,0.00017068,3]
[324827840,1714355433016,-500.0,0.00017068,3]
[324827841,1714355433025,-500.0,0.00017068,3]
[324827842,1714355433034,-500.0,0.00017068,3]
[324827843,1714355433043,-1215.67,0.00017068,3]
[324827844,1714355433053,-794.71,0.00017068,3]
[324827845,1714355433062,-500.0,0.00017068,3]
[324827846,1714355433071,-500.0,0.00017068,3]
[324827847,1714355433080,-500.0,0.00017068,3]
[324827848,1714355433089,-500.0,0.00017068,3]
[324827849,1714355433098,-2312.58864377,0.00017068,3]
[324827885,1714355438417,-921.65,0.00016793,2]
[324827886,1714355438427,-500.0,0.00016796,2]
[324827887,1714355438436,-921.65,0.00017067,3]
[324827888,1714355438446,-4395.62135623,0.00017068,3]
[324827889,1714355438456,-500.0,0.00017068,3]
[324827890,1714355438465,-500.0,0.00017068,3]
[324827891,1714355438475,-500.0,0.00017068,3]
[324827892,1714355438485,-500.0,0.00017068,3]
[324827893,1714355438494,-500.0,0.00017068,3]
[324827894,1714355438506,-1115.81,0.00017068,3]
[324827895,1714355438516,-1203.88,0.00017068,3]
[324827896,1714355438526,-500.0,0.00017068,3]
[324827897,1714355438536,-500.0,0.00017068,3]